bitfinex-derivatives/quotes_SOLF0:USTF0_20250624
["timestamp","ask_amount","ask_price","bid_price","bid_amount"]
[1750795837343,6.9757,143.29,143.26,6.9769]
[1750795837738,6.9762,143.28,143.25,36.0]
[1750795838348,4.45460143,143.3,143.25,36.0]
[1750795838540,6.9769,143.27,143.23,20.45000695]
[1750795838738,6.9769,143.27,143.23,11.7791]
[1750795838938,6.9769,143.27,143.23,4.8007]
[1750795839341,6.9763,143.28,143.24,6.9778]
[1750795839848,4.45460143,143.3,143.24,6.9778]
[1750795840744,6.9764,143.28,143.25,6.9776]
[1750795841439,6.9758,143.29,143.25,6.9776]
[1750795841646,40.45460143,143.32,143.24,4.45460143]
[1750795841948,6.975,143.31,143.24,4.45460143]
[1750795842145,40.45460143,143.32,143.24,4.45460143]
[1750795842549,6.9751,143.31,143.24,4.45460143]
[1750795842748,6.9751,143.31,143.27,6.9764]
[1750795842949,6.9751,143.31,143.24,4.45460143]
[1750795843249,6.9751,143.31,143.28,6.9761]
[1750795843650,36.0,143.32,143.28,6.9758]
[1750795844153,42.9747,143.32,143.28,6.9758]
[1750795844447,42.9747,143.32,143.29,6.9756]
[1750795844649,36.0,143.32,143.27,4.45460143]
[1750795845044,47.41460143,143.35,143.3,6.9749]
[1750795845249,6.9736,143.34,143.3,6.9749]
[1750795845753,45.03390143,143.35,143.3,6.9749]
[1750795846750,6.9734,143.34,143.31,6.9747]
[1750795846955,40.39460143,143.36,143.29,4.45460143]
[1750795847356,40.39460143,143.36,143.27,8.67090695]
[1750795847658,40.39460143,143.36,143.27,4.45460143]
[1750795849057,6.974,143.33,143.29,6.9754]
[1750795849559,6.9743,143.32,143.29,6.9754]
[1750795851862,6.9738,143.33,143.3,6.9752]
[1750795852060,40.39460143,143.36,143.3,6.9752]
[1750795852662,40.39460143,143.36,143.31,6.9746]
[1750795853065,40.39460143,143.36,143.27,4.45460143]
[1750795853360,6.9735,143.34,143.3,6.9749]
[1750795853855,6.9735,143.34,143.27,4.45460143]
[1750795855250,6.9735,143.34,143.3,6.9749]
[1750795856459,6.9735,143.34,143.31,6.9747]
[1750795856956,40.39460143,143.37,143.33,6.9735]
[1750795857550,6.9727,143.36,143.33,6.9735]
[1750795857953,40.39460143,143.37,143.32,6.974]
[1750795858356,6.9728,143.35,143.32,6.974]
[1750795860259,6.9725,143.36,143.33,6.9737]
[1750795860458,40.39460143,143.37,143.3,35.94]
[1750795860960,4.45460143,143.35,143.3,35.94]
[1750795861760,6.9738,143.33,143.3,42.9149]
[1750795862256,40.39460143,143.37,143.3,35.94]
[1750795862464,6.9725,143.36,143.33,6.9735]
[1750795863463,4.7109,143.39,143.33,4.45460143]
[1750795863760,4.45460143,143.4,143.33,4.45460143]
[1750795864761,6.9711,143.39,143.36,6.9721]
[1750795866159,6.9713,143.38,143.36,6.9721]
[1750795866763,6.9713,143.38,143.35,6.9725]
[1750795866965,6.971,143.39,143.33,4.45460143]
[1750795867157,35.92,143.41,143.35,4.45460143]
[1750795867359,35.92,143.41,143.37,6.9716]
[1750795867562,35.92,143.41,143.35,4.45460143]
[1750795867965,35.92,143.41,143.37,6.9716]
[1750795868166,6.9706,143.4,143.37,6.9716]
[1750795871368,40.37460143,143.41,143.34,38.1314]
[1750795872168,6.9713,143.39,143.34,38.1314]
[1750795872874,6.9713,143.39,143.36,6.972]
[1750795873368,6.9713,143.39,143.34,38.1314]
[1750795874374,40.37460143,143.41,143.34,38.1314]
[1750795875070,6.9718,143.37,143.34,45.1044]
[1750795876175,6.9723,143.36,143.34,35.92]
[1750795876972,4.45460143,143.35,143.31,35.86]
[1750795877277,4.45460143,143.35,143.29,10.98660695]
[1750795877481,6.9735,143.34,143.31,6.9746]
[1750795877977,6.9738,143.33,143.3,6.975]
[1750795879077,6.9733,143.34,143.31,6.9745]
[1750795881281,6.973,143.35,143.32,6.9742]
[1750795882182,6.9724,143.36,143.33,6.9737]
[1750795882483,35.86,143.39,143.3,13.12550838]
[1750795882677,40.31460143,143.39,143.31,8.67090695]
[1750795882877,6.9721,143.37,143.34,6.9728]
[1750795883972,40.31460143,143.39,143.34,6.9728]
[1750795884685,6.972,143.37,143.34,6.9728]
[1750795885778,6.9723,143.36,143.34,6.9728]
[1750795886578,4.45460143,143.37,143.3,8.67090695]
[1750795887173,6.9738,143.33,143.31,6.9744]
[1750795887578,4.45460143,143.37,143.31,6.9744]
[1750795887787,6.9735,143.34,143.31,6.9744]
[1750795888586,6.9738,143.33,143.31,6.9744]
[1750795892482,6.9735,143.34,143.31,6.9744]
[1750795892684,4.7453,143.36,143.28,48.98550838]
[1750795892888,4.45460143,143.37,143.3,13.12550838]
[1750795893091,6.9725,143.36,143.33,6.9734]
[1750795893294,6.9725,143.36,143.3,13.12550838]
[1750795893789,6.9725,143.36,143.31,8.67090695]
[1750795893982,6.9725,143.36,143.32,8.67090695]
[1750795894184,6.9725,143.36,143.33,6.9734]
[1750795897591,6.972,143.37,143.32,8.67090695]
[1750795897892,35.86,143.39,143.33,8.67090695]
[1750795898091,6.9721,143.37,143.33,8.67090695]
[1750795898290,35.86,143.39,143.33,8.67090695]
[1750795898789,6.9715,143.38,143.33,8.67090695]
[1750795899396,6.9719,143.37,143.34,6.9729]
[1750795899889,35.86,143.39,143.34,6.9729]
[1750795901196,6.9721,143.37,143.34,6.9729]
[1750795903804,6.9715,143.38,143.33,8.67090695]
[1750795904191,4.45596136,143.35,143.3,8.67090695]
[1750795904398,6.9743,143.32,143.3,8.67090695]
[1750795904599,40.23596136,143.35,143.3,8.67090695]
[1750795905102,40.23596136,143.35,143.29,15.64630695]
[1750795905298,4.45596136,143.33,143.29,8.67090695]
[1750795905500,6.9755,143.3,143.28,8.67090695]
[1750795907308,6.9755,143.3,143.27,15.64730695]
[1750795910022,6.9749,143.31,143.28,6.9761]
[1750795910609,44.74132452,143.35,143.29,6.9754]
[1750795911520,6.9742,143.32,143.29,6.9754]
[1750795913721,6.9738,143.33,143.3,6.9752]
[1750795913919,35.78,143.35,143.29,8.67090695]
[1750795914118,4.45932452,143.37,143.3,13.13023147]
[1750795914319,6.9731,143.35,143.32,6.974]
[1750795914618,4.45932452,143.37,143.3,48.91023147]
[1750795915016,6.9735,143.34,143.31,6.9745]
[1750795915224,6.9735,143.34,143.3,44.45090695]
[1750795916316,6.9735,143.34,143.31,6.9744]
[1750795917216,6.9735,143.34,143.32,6.9742]
[1750795918023,6.9725,143.36,143.32,8.67090695]
[1750795918222,35.78,143.38,143.32,8.67090695]
[1750795918718,6.9721,143.37,143.34,6.973]
[1750795920515,6.9723,143.36,143.34,6.973]
[1750795920723,6.9723,143.36,143.34,15.64390695]
[1750795921322,6.9723,143.36,143.34,6.973]
[1750795921616,6.9729,143.35,143.32,8.67090695]
[1750795921820,35.78,143.38,143.32,8.67090695]
[1750795922829,6.973,143.35,143.32,15.64470695]
[1750795923221,35.78,143.38,143.33,6.9734]
[1750795923222,6.9726,143.36,143.33,6.9734]
[1750795923421,35.78,143.38,143.33,6.9734]
[1750795923921,35.78,143.38,143.33,15.64430695]
[1750795924430,6.9726,143.36,143.33,15.64430695]
[1750795924824,6.9721,143.37,143.34,6.9732]
[1750795925223,35.78,143.38,143.33,13.13023147]
[1750795925529,6.9716,143.38,143.35,6.9725]
[1750795925922,6.9716,143.38,143.35,15.64340695]
[1750795926121,6.9718,143.37,143.35,6.9725]
[1750795927432,11.65442452,143.4,143.35,6.9725]
[1750795927826,11.65442452,143.4,143.34,8.67090695]
[1750795928019,6.9725,143.36,143.33,8.67090695]
[1750795928422,4.45932452,143.38,143.33,8.67090695]
[1750795928619,4.45932452,143.38,143.32,15.64490695]
[1750795928620,6.973,143.35,143.32,15.64490695]
[1750795928832,4.45932452,143.38,143.32,15.64490695]
[1750795928833,4.45932452,143.36,143.32,8.67090695]
[1750795929223,6.9731,143.35,143.32,8.67090695]
[1750795929927,6.9731,143.35,143.32,15.64510695]
[1750795930133,4.45932452,143.36,143.32,8.67090695]
[1750795930325,4.45932452,143.34,143.3,8.67090695]
[1750795930527,4.45932452,143.34,143.3,15.64580695]
[1750795930728,6.974,143.33,143.3,8.67090695]
[1750795931320,4.45932452,143.36,143.3,8.67090695]
[1750795931528,4.45932452,143.36,143.29,4.45932452]
[1750795931529,4.45932452,143.36,143.31,8.67090695]
[1750795932830,6.973,143.35,143.32,6.974]
[1750795933240,6.973,143.35,143.33,6.9737]
[1750795934427,35.7,143.38,143.33,8.67090695]
[1750795934934,6.9722,143.37,143.34,6.973]
[1750795935130,35.7,143.38,143.34,6.973]
[1750795935732,6.9719,143.37,143.34,6.973]
[1750795937435,35.7,143.38,143.33,8.67090695]
[1750795937641,4.45932452,143.37,143.31,8.67090695]
[1750795938636,4.45932452,143.35,143.3,8.67090695]
[1750795939635,4.45932452,143.33,143.29,8.67090695]
[1750795939843,6.9749,143.31,143.28,44.37090695]
[1750795940029,4.45932452,143.33,143.28,8.67090695]
[1750795940362,6.9753,143.3,143.28,15.64680695]
[1750795940540,6.9753,143.3,143.28,8.67090695]
[1750795941643,11.39842452,143.33,143.28,8.67090695]
[1750795941829,9.18692452,143.33,143.28,8.67090695]
[1750795943141,6.9747,143.31,143.29,6.9754]
[1750795943743,6.9745,143.32,143.29,6.9754]
[1750795944942,6.9745,143.32,143.29,15.64630695]
[1750795945243,6.9749,143.31,143.29,8.67090695]
[1750795945438,6.9749,143.31,143.28,15.64670695]
[1750795946142,4.45932452,143.33,143.28,15.64670695]
[1750795946639,4.45932452,143.33,143.29,6.9757]
[1750795946842,6.9748,143.31,143.29,6.9757]
[1750795948038,6.9744,143.32,143.29,6.9757]
[1750795948236,4.45932452,143.33,143.29,6.9757]
[1750795948733,6.9743,143.32,143.29,6.9757]
[1750795950850,4.45932452,143.33,143.29,6.9757]
[1750795951148,6.9748,143.31,143.29,6.9757]
[1750795951542,6.9745,143.32,143.29,6.9757]
[1750795951839,4.45932452,143.33,143.3,6.9751]
[1750795952037,35.7,143.34,143.3,8.67090695]
[1750795952240,4.45932452,143.35,143.3,8.67090695]
[1750795952443,4.45932452,143.35,143.31,6.9744]
[1750795953046,6.9736,143.34,143.31,6.9744]
[1750795953954,6.9738,143.33,143.31,6.9744]
[1750795955955,6.9738,143.33,143.3,15.64580695]
[1750795956256,6.9744,143.32,143.3,15.64580695]
[1750795956458,4.45932452,143.34,143.29,8.67090695]
[1750795957553,4.45932452,143.32,143.28,8.67090695]
[1750795957857,4.45932452,143.3,143.27,8.67090695]
[1750795958057,6.9759,143.29,143.27,6.9766]
[1750795958356,4.45932452,143.3,143.26,8.67090695]
[1750795958552,2.2552,143.32,143.25,8.67090695]
[1750795958750,4.45932452,143.29,143.25,8.67090695]
[1750795959150,6.9771,143.27,143.25,8.67090695]
[1750795959456,4.45932452,143.29,143.25,8.67090695]
[1750795960068,6.83262452,143.3,143.25,8.67090695]
[1750795960748,6.83262452,143.3,143.25,15.64830695]
[1750795960944,6.977,143.27,143.25,15.64830695]
[1750795961157,6.83262452,143.3,143.23,15.64930695]
[1750795961158,4.45932452,143.26,143.23,15.64930695]
[1750795961662,4.45932452,143.26,143.22,35.64]
[1750795961663,4.45932452,143.24,143.22,8.67090695]
[1750795961854,4.45932452,143.24,143.21,8.67090695]
[1750795962058,11.43772452,143.24,143.21,8.67090695]
[1750795962257,11.43772452,143.24,143.2,8.67090695]
[1750795962258,4.45932452,143.24,143.2,8.67090695]
[1750795962647,6.9796,143.21,143.19,8.67090695]
[1750795962858,4.45932452,143.22,143.18,8.67090695]
[1750795963056,6.9798,143.21,143.18,8.67090695]
[1750795963249,4.45932452,143.22,143.19,6.9803]
[1750795963455,4.45932452,143.22,143.17,8.67090695]
[1750795963656,6.9802,143.2,143.16,8.67090695]
[1750795964052,4.45932452,143.22,143.16,8.67090695]
[1750795964364,4.45932452,143.22,143.18,6.9808]
[1750795964754,4.45932452,143.24,143.18,8.67090695]
[1750795965056,2.4084,143.27,143.19,48.77023147]
[1750795965261,49.40092452,143.28,143.21,4.45932452]
[1750795965765,49.40092452,143.28,143.21,13.13023147]
[1750795966352,6.9759,143.29,143.23,4.45932452]
[1750795966761,6.9759,143.29,143.23,40.09932452]
[1750795967160,6.9759,143.29,143.26,6.977]
[1750795970757,6.9759,143.29,143.23,40.09932452]
[1750795973357,42.6155,143.3,143.23,40.09932452]
[1750795973558,35.64,143.3,143.24,4.45932452]
[1750795974265,42.6156,143.3,143.24,4.45932452]
[1750795974768,42.6156,143.3,143.27,6.9766]
[1750795975762,40.09932452,143.33,143.26,4.45932452]
[1750795976351,35.64,143.33,143.27,2.2255]
[1750795976666,35.64,143.33,143.28,4.45932452]
[1750795976967,42.6139,143.33,143.3,6.975]
[1750795977164,35.64,143.33,143.3,6.975]
[1750795977358,35.64,143.33,143.28,4.45932452]
[1750795977962,6.974,143.33,143.3,6.9749]
[1750795978268,35.64,143.35,143.28,4.45932452]
[1750795978561,6.9733,143.34,143.31,6.9744]
[1750795978858,35.64,143.35,143.28,13.13023147]
[1750795979265,42.613,143.35,143.33,6.9737]
[1750795979467,42.613,143.35,143.28,13.13023147]
[1750795979468,35.64,143.35,143.3,13.13023147]
[1750795980358,6.9733,143.34,143.31,6.9744]
[1750795980760,4.45932452,143.33,143.26,8.67090695]
[1750795980956,4.45932452,143.31,143.25,15.64830695]
[1750795981267,4.45932452,143.31,143.25,8.67090695]
[1750795981463,6.976,143.29,143.26,6.9769]
[1750795981863,4.45932452,143.31,143.24,44.31090695]
[1750795982063,6.9756,143.3,143.26,6.9769]
[1750795982266,4.45932452,143.33,143.26,8.67090695]
[1750795982568,6.9752,143.3,143.27,6.9764]
[1750795983171,6.9751,143.31,143.26,8.67090695]
[1750795983566,6.9751,143.31,143.27,8.67090695]
[1750795983766,6.9744,143.32,143.27,8.67090695]
[1750795983966,6.9744,143.32,143.27,13.13023147]
[1750795984170,40.09932452,143.35,143.29,4.45932452]
[1750795984478,4.45932452,143.33,143.28,35.64]
[1750795984775,4.45932452,143.33,143.27,6.9764]
[1750795984965,6.9755,143.3,143.27,6.9764]
[1750795985668,6.9757,143.29,143.27,6.9764]
[1750795986174,6.9762,143.28,143.26,8.67090695]
[1750795986377,6.9762,143.28,143.25,44.31090695]
[1750795986674,4.45932452,143.31,143.25,44.31090695]
[1750795986860,6.976,143.29,143.26,6.9771]
[1750795990878,6.9754,143.3,143.26,8.66392776]
[1750795991069,4.45932452,143.33,143.26,8.66392776]
[1750795991269,4.45932452,143.33,143.27,8.66392776]
[1750795991468,6.9749,143.31,143.28,6.9761]
[1750795992178,6.9744,143.32,143.29,6.9755]
[1750795992376,6.9744,143.32,143.27,13.12325228]
[1750795992575,40.09932452,143.35,143.28,8.66392776]
[1750795992876,6.9739,143.33,143.3,6.9748]
[1750795993077,35.64,143.35,143.28,8.66392776]
[1750795993267,35.64,143.35,143.29,8.66392776]
[1750795993870,6.974,143.33,143.3,6.9751]
[1750795995885,4.45932452,143.32,143.25,44.24392776]
[1750795996091,4.46082382,143.31,143.25,44.24392776]
[1750795996279,6.9761,143.29,143.26,6.9769]
[1750795997390,6.9761,143.29,143.27,6.9766]
[1750795997781,6.9754,143.3,143.25,44.24392776]
[1750795997974,6.9754,143.3,143.27,6.9763]
[1750795998486,6.9754,143.3,143.28,6.9761]
[1750796001591,6.9754,143.3,143.27,6.9764]
[1750796004293,6.9762,143.28,143.26,15.64102776]
[1750796004493,4.46082382,143.31,143.26,6.9771]
[1750796004992,6.9759,143.29,143.26,6.9771]
[1750796005293,4.46082382,143.31,143.26,6.9771]
[1750796005684,40.04082382,143.31,143.26,6.9771]
[1750796005990,6.9762,143.29,143.26,6.9771]
[1750796006286,40.04082382,143.31,143.26,6.9771]
[1750796007091,40.04082382,143.31,143.25,51.22132776]
[1750796008090,6.9765,143.28,143.26,8.66392776]
[1750796008282,40.04082382,143.31,143.25,51.22132776]
[1750796008900,6.9765,143.28,143.26,6.9771]
[1750796009077,6.9765,143.28,143.26,15.64102776]
[1750796010186,6.9765,143.28,143.25,51.22132776]
[1750796010387,6.9767,143.27,143.25,51.22132776]
[1750796010586,40.04082382,143.31,143.25,51.22132776]
[1750796010587,40.04082382,143.31,143.25,44.24392776]
[1750796010787,6.9764,143.28,143.26,6.9771]
[1750796011395,6.9764,143.28,143.25,8.66392776]
[1750796011694,4.46082382,143.27,143.23,8.66392776]
[1750796011896,4.46082382,143.25,143.23,8.66392776]
[1750796012099,4.46082382,143.25,143.21,8.66392776]
[1750796012601,4.46082382,143.25,143.2,8.66392776]
[1750796012813,4.46082382,143.23,143.19,8.66392776]
[1750796013096,4.46559143,143.21,143.18,8.66392776]
[1750796013295,6.9801,143.2,143.18,8.66392776]
[1750796013496,4.46559143,143.21,143.18,8.66392776]
[1750796013990,40.06559143,143.23,143.18,8.66392776]
[1750796014296,40.06559143,143.23,143.19,8.66392776]
[1750796014703,47.04449143,143.23,143.2,6.9798]
[1750796015189,11.44369143,143.25,143.22,6.9791]
[1750796016203,6.9784,143.24,143.21,6.9795]
[1750796016396,4.46559143,143.25,143.19,8.66392776]
[1750796016697,6.9784,143.24,143.21,6.9793]
[1750796017092,37.825,143.26,143.2,8.66392776]
[1750796017300,6.9779,143.25,143.22,6.9788]
[1750796017600,40.06559143,143.26,143.22,6.9788]
[1750796018101,6.9779,143.25,143.22,6.9788]
[1750796018492,4.46559143,143.28,143.21,8.66392776]
[1750796018690,2.3645,143.29,143.22,8.66392776]
[1750796018900,40.06559143,143.3,143.25,6.9774]
[1750796019196,40.06559143,143.3,143.22,8.66392776]
[1750796019699,6.976,143.29,143.26,6.9771]
[1750796019902,40.06559143,143.3,143.26,6.9771]
[1750796020100,40.06559143,143.3,143.23,8.66392776]
[1750796020101,40.06559143,143.3,143.25,6.9774]
[1750796020497,6.9764,143.28,143.25,6.9774]
[1750796023206,6.9764,143.28,143.26,6.9771]
[1750796023409,6.9764,143.28,143.23,8.66392776]
[1750796023809,6.9764,143.28,143.25,6.9773]
[1750796025009,6.9759,143.29,143.23,13.12951919]
[1750796025315,6.9759,143.29,143.24,8.66392776]
[1750796025912,42.5754,143.3,143.27,6.9763]
[1750796026207,6.9754,143.3,143.27,6.9763]
[1750796027813,607.04559143,143.32,143.27,6.9763]
[1750796028221,6.9754,143.3,143.27,6.9763]
[1750796029117,6.975,143.31,143.28,6.976]
[1750796029415,35.56,143.33,143.27,48.68951919]
[1750796029615,35.56,143.33,143.3,6.9749]
[1750796030108,42.534,143.33,143.27,48.68951919]
[1750796030508,42.534,143.33,143.28,8.66392776]
[1750796030909,6.974,143.33,143.28,8.66392776]
[1750796031413,6.974,143.33,143.3,6.975]
[1750796033021,6.9735,143.34,143.31,6.9746]
[1750796035316,6.9737,143.33,143.31,6.9746]
[1750796035718,6.9737,143.33,143.3,6.975]
[1750796036017,6.9743,143.32,143.3,6.975]
[1750796037721,6.975,143.31,143.27,44.22392776]
[1750796038022,6.975,143.31,143.27,35.56]
[1750796038421,6.9752,143.3,143.28,6.9758]
[1750796039716,6.9757,143.29,143.27,51.20032776]
[1750796039927,4.46559143,143.32,143.27,42.5364]
[1750796040117,4.46559143,143.32,143.27,35.56]
[1750796040318,6.9754,143.3,143.28,6.9761]
[1750796040710,4.46559143,143.32,143.27,35.56]
[1750796040916,4.46559143,143.28,143.23,8.66392776]
[1750796041119,40.02559143,143.28,143.22,8.66392776]
[1750796041316,4.46559143,143.26,143.22,8.66392776]
[1750796041621,6.9779,143.25,143.23,6.9783]
[1750796042326,11.44289143,143.26,143.23,6.9783]
[1750796042514,35.56,143.28,143.22,4.46559143]
[1750796042710,35.56,143.28,143.23,8.66392776]
[1750796042910,42.5364,143.28,143.23,8.66392776]
[1750796043824,42.5364,143.28,143.25,6.9772]
[1750796044027,4.46559143,143.3,143.24,8.66392776]
[1750796045028,6.9763,143.28,143.25,6.9771]
[1750796045229,6.9763,143.28,143.24,8.66392776]
[1750796045529,6.9763,143.28,143.25,6.9775]
[1750796045932,47.00849143,143.31,143.26,6.9768]
[1750796046323,6.9764,143.28,143.26,6.9768]
[1750796048828,6.9759,143.29,143.26,6.9768]
[1750796049018,4.46559143,143.3,143.27,6.9764]
[1750796049219,4.46559143,143.33,143.25,8.66392776]
[1750796049419,39.98559143,143.33,143.29,6.9753]
[1750796050032,6.9745,143.32,143.3,6.9751]
[1750796050333,39.98559143,143.33,143.26,8.66392776]
[1750796050632,6.9749,143.31,143.28,6.9757]
[1750796051232,6.9749,143.31,143.26,8.66392776]
[1750796051935,6.9749,143.31,143.28,6.9757]
[1750796052631,6.9749,143.31,143.29,6.9756]
[1750796052830,6.9744,143.32,143.26,8.66392776]
[1750796053238,6.9744,143.32,143.29,6.9753]
[1750796053936,42.4939,143.33,143.3,6.9748]
[1750796054133,35.52,143.33,143.27,13.12951919]
[1750796054834,6.9745,143.32,143.29,6.9753]
[1750796055629,6.9749,143.31,143.29,6.9753]
[1750796055937,39.98559143,143.33,143.26,8.66392776]
[1750796056739,6.9745,143.32,143.29,6.9755]
[1750796061043,6.9745,143.32,143.3,6.9751]
[1750796064346,6.9751,143.31,143.29,8.66392776]
[1750796064544,4.46559143,143.33,143.27,8.66392776]
[1750796064745,4.46559143,143.31,143.26,8.66392776]
[1750796064949,6.9766,143.28,143.26,8.66392776]
[1750796065149,6.9766,143.28,143.25,44.18392776]
[1750796065551,6.9766,143.28,143.25,8.66392776]
[1750796065850,6.9766,143.28,143.24,8.66392776]
[1750796066049,6.9766,143.28,143.26,6.9771]
[1750796066348,11.44149143,143.29,143.25,8.66392776]
[1750796066552,11.44149143,143.29,143.26,6.9768]
[1750796067644,6.9759,143.29,143.26,6.9768]
[1750796067840,6.9762,143.28,143.26,6.9768]
[1750796069354,6.9759,143.29,143.27,6.9767]
[1750796070244,6.9759,143.29,143.26,15.64082776]
[1750796070650,6.9762,143.28,143.26,15.64082776]
[1750796070847,39.98559143,143.31,143.26,15.64082776]
[1750796071347,6.9759,143.29,143.26,15.64082776]
[1750796071857,6.9759,143.29,143.27,6.9766]
[1750796072756,35.52,143.31,143.28,6.9759]
[1750796073149,6.9754,143.3,143.28,6.9759]
[1750796073642,35.52,143.31,143.26,8.66392776]
[1750796073844,47.01969143,143.35,143.28,8.66392776]
[1750796074050,47.01969143,143.35,143.29,8.66392776]
[1750796074259,6.9735,143.34,143.31,6.9743]
[1750796074752,6.9735,143.34,143.32,6.974]
[1750796074947,35.52,143.35,143.3,8.66392776]
[1750796075254,35.52,143.35,143.31,6.9745]
[1750796075548,39.98559143,143.35,143.29,8.66392776]
[1750796075753,39.98559143,143.35,143.28,8.66392776]
[1750796076054,6.9745,143.32,143.28,8.66392776]
[1750796077150,6.9745,143.32,143.29,6.9756]
[1750796078551,39.98559143,143.35,143.29,6.9756]
[1750796079354,6.9747,143.32,143.29,6.9756]
[1750796079759,39.98559143,143.35,143.29,6.9756]
[1750796080257,6.9747,143.31,143.29,6.9756]
[1750796081251,4.46559143,143.33,143.28,8.66392776]
[1750796081448,4.46559143,143.33,143.27,8.66392776]
[1750796081648,8.985102,143.34,143.27,8.66392776]
[1750796081649,6.9761,143.29,143.27,15.64032776]
[1750796081850,39.94559143,143.31,143.27,8.66392776]
[1750796082050,39.94559143,143.31,143.26,8.66392776]
[1750796082657,39.94559143,143.31,143.25,8.66392776]
[1750796083352,6.9762,143.28,143.26,6.9769]
[1750796083556,6.9762,143.28,143.26,15.64082776]
[1750796086255,35.48,143.31,143.26,8.66392776]
[1750796086461,35.48,143.31,143.27,8.66392776]
[1750796086865,6.9753,143.3,143.28,6.9758]
[1750796087364,42.455,143.31,143.28,6.9758]
[1750796088765,6.975,143.31,143.28,6.9758]
[1750796089865,6.975,143.31,143.29,6.9755]
[1750796090365,40.1632,143.34,143.28,8.66392776]
[1750796091562,40.1632,143.34,143.29,8.66392776]
[1750796092265,6.9745,143.32,143.3,6.9752]
[1750796098068,40.1632,143.34,143.29,8.66392776]
[1750796098266,35.48,143.34,143.29,8.66392776]
[1750796098871,35.48,143.34,143.31,6.9743]
[1750796099371,6.9739,143.33,143.31,6.9743]
[1750796100368,6.9739,143.33,143.29,8.66392776]
[1750796100369,35.48,143.34,143.3,6.975]
[1750796101168,6.9745,143.32,143.3,6.975]
[1750796101364,39.94559143,143.34,143.3,6.975]
[1750796101566,6.9745,143.32,143.3,6.975]
[1750796103071,6.9747,143.31,143.29,15.63932776]
[1750796103467,6.9752,143.3,143.28,15.63982776]
[1750796103961,4.46559143,143.32,143.28,8.66392776]
[1750796104162,9.44520353,143.31,143.29,6.9755]
[1750796104360,6.9749,143.31,143.29,6.9755]
[1750796104562,4.46559143,143.32,143.28,8.66392776]
[1750796104773,6.9752,143.3,143.28,15.63982776]
[1750796104957,6.9752,143.3,143.27,35.48]
[1750796104958,4.46559143,143.3,143.27,8.66392776]
[1750796105158,6.9769,143.27,143.25,15.64132776]
[1750796105470,6.9769,143.27,143.25,6.9774]
[1750796106271,39.94559143,143.3,143.24,8.66392776]
[1750796106470,39.94559143,143.3,143.25,8.66392776]
[1750796106674,35.48,143.3,143.26,8.66392776]
[1750796106970,42.4556,143.3,143.27,6.9766]
[1750796107672,6.9757,143.29,143.27,6.9766]
[1750796107883,39.94559143,143.3,143.26,8.66392776]
[1750796108166,6.9767,143.27,143.25,8.66392776]
[1750796108374,39.94559143,143.3,143.24,8.66392776]
[1750796108865,39.94559143,143.3,143.25,6.9775]
[1750796109062,39.94559143,143.3,143.24,8.66392776]
[1750796112266,6.9765,143.28,143.26,6.9769]
[1750796115667,35.48,143.3,143.25,8.66392776]
[1750796116174,35.48,143.3,143.27,6.9763]
[1750796116175,42.4555,143.3,143.27,6.9763]
[1750796117377,42.4555,143.3,143.28,6.9761]
[1750796118071,35.48,143.3,143.29,6.9757]
[1750796118670,39.90559143,143.33,143.27,8.66392776]
[1750796118868,4.46559143,143.31,143.27,8.66392776]
[1750796119070,4.46559143,143.31,143.26,8.66392776]
[1750796119279,6.976,143.29,143.27,15.64052776]
[1750796119471,6.976,143.29,143.27,6.9766]
[1750796119773,6.976,143.29,143.26,8.66392776]
[1750796120073,6.9762,143.28,143.26,15.64082776]
[1750796120269,6.9762,143.28,143.26,6.9769]
[1750796121473,6.9759,143.29,143.27,6.9767]
[1750796122073,6.9748,143.31,143.28,6.9761]
[1750796122279,35.44,143.33,143.27,44.10392776]
[1750796122474,35.44,143.33,143.28,8.66392776]
[1750796122775,6.9745,143.32,143.3,6.975]
[1750796123183,35.44,143.33,143.3,6.975]
[1750796123976,35.44,143.33,143.29,8.66392776]